fUSD/lending_fUSD_20241104
["ID","MTS","AMOUNT","RATE_DAILY","PERIOD"]
[341260975,1730733239284,-500.0,0.00035616,2]
[341260976,1730733239306,-500.0,0.00035616,2]
[341260977,1730733239328,-500.0,0.00035616,2]
[341260978,1730733239350,-967.37,0.00035616,2]
[341260979,1730733239370,-500.0,0.00035616,2]
[341260980,1730733239391,-623.28,0.00035616,2]
[341260981,1730733239414,-500.0,0.00035616,2]
[341260982,1730733239437,-514.84049654,0.00035616,2]
[341260983,1730733239460,-500.0,0.00035616,2]
[341260984,1730733239480,-500.0,0.00035616,2]
[341260985,1730733239505,-500.0,0.00035616,2]
[341260986,1730733239527,-500.0,0.00035616,2]
[341260987,1730733239548,-500.0,0.00035616,2]
[341260988,1730733239570,-540.90759283,0.00035616,2]
[341260989,1730733239590,-577.05491012,0.00035616,2]
[341260990,1730733239611,-500.0,0.00035616,2]
[341260991,1730733239632,-1380.78,0.00035616,2]
[341260992,1730733239653,-500.0,0.00035616,2]
[341260993,1730733239676,-486.18915892,0.00035616,2]
[341260994,1730733239698,-500.0,0.00035616,2]
[341260995,1730733239720,-1926.96,0.00035616,2]
[341260996,1730733239748,-500.0,0.00035616,2]
[341260997,1730733239777,-1017.73,0.00035616,2]
[341260998,1730733239797,-509.6098887,0.00035616,2]
[341260999,1730733239820,-500.0,0.00035616,2]
[341261000,1730733239841,-500.0,0.00035616,2]
[341261001,1730733239862,-629.92120917,0.00035616,2]
[341261002,1730733239883,-500.0,0.00035616,2]
[341261003,1730733239903,-150.0,0.00035616,2]
[341261004,1730733239925,-500.0,0.00035616,2]
[341261005,1730733239949,-500.0,0.00035616,2]
[341261006,1730733239972,-500.0,0.00035616,2]
[341261007,1730733239996,-500.0,0.00035616,2]
[341261008,1730733240028,-500.0,0.00035616,2]
[341261009,1730733240049,-500.0,0.00035616,2]
[341261010,1730733240070,-564.55277695,0.00035616,2]
[341261011,1730733240092,-500.0,0.00035616,2]
[341261012,1730733240113,-454.53368832,0.00035616,2]
[341261013,1730733240135,-1119.08,0.00035616,2]
[341261014,1730733240157,-891.54,0.00035616,2]
[341261015,1730733240178,-500.0,0.00035616,2]
[341261016,1730733240199,-500.0,0.00035616,2]
[341261017,1730733240219,-545.81013493,0.00035616,2]
[341261018,1730733240240,-500.0,0.00035616,2]
[341261019,1730733240267,-500.0,0.00035616,2]
[341261020,1730733240287,-500.0,0.00035616,2]
[341261021,1730733240308,-1875.87,0.00035616,2]
[341261022,1730733240329,-500.0,0.00035616,2]
[341261023,1730733240350,-500.0,0.00035616,2]
[341261024,1730733240374,-555.76,0.00035616,2]
[341261025,1730733240395,-500.0,0.00035616,2]
[341261026,1730733240416,-500.0,0.00035616,2]
[341261027,1730733240437,-549.33,0.00035616,2]
[341261028,1730733240459,-1016.18,0.00035616,2]
[341261029,1730733240481,-500.0,0.00035616,2]
[341261030,1730733240508,-347.28842703,0.00035616,2]
[341261031,1730733240529,-500.0,0.00035616,2]
[341261032,1730733240551,-500.0,0.00035616,2]
[341261033,1730733240573,-500.0,0.00035616,2]
[341261034,1730733240594,-2000.2,0.00035616,2]
[341261035,1730733240617,-1345.8,0.00035616,2]
[341261036,1730733240638,-1450.87,0.00035616,2]
[341261037,1730733240659,-500.0,0.00035616,2]
[341261038,1730733240680,-500.0,0.00035616,2]
[341261039,1730733240700,-500.0,0.00035616,2]
[341261040,1730733240721,-760.13,0.00035616,2]
[341261041,1730733240745,-449.77246004,0.00035616,2]
[341261042,1730733240771,-500.0,0.00035616,2]
[341261043,1730733240792,-634.66,0.00035616,2]
[341261044,1730733240815,-500.0,0.00035616,2]
[341261045,1730733240836,-500.0,0.00035616,2]
[341261046,1730733240857,-1037.55,0.00035616,2]
[341261047,1730733240878,-1058.27,0.00035616,2]
[341261048,1730733240899,-1058.27,0.00035616,2]
[341261049,1730733240921,-1017.94,0.00035616,2]
[341261050,1730733240941,-177.51128296,0.00035616,2]
[341261051,1730733240962,-547.47065031,0.00035616,2]
[341261052,1730733240984,-500.0,0.00035616,2]
[341261053,1730733241005,-500.0,0.00035616,2]
[341261054,1730733241178,-500.0,0.00035616,2]
[341261055,1730733241199,-523.54,0.00035616,2]
[341261056,1730733241219,-500.0,0.00035616,2]
[341261057,1730733241239,-500.0,0.00035616,2]
[341261058,1730733241261,-500.0,0.00035616,2]
[341261059,1730733241282,-173.34027512,0.00035616,2]
[341261060,1730733241302,-500.0,0.00035616,2]
[341261061,1730733241323,-524.75,0.00035616,2]
[341261062,1730733241344,-595.65890189,0.00035616,2]
[341261063,1730733241367,-1702.62,0.00035616,2]
[341261064,1730733241389,-544.98,0.00035616,2]
[341261065,1730733241409,-500.0,0.00035616,2]
[341261066,1730733241431,-1154.04,0.00035616,2]
[341261067,1730733241452,-1151.92,0.00035616,2]
[341261068,1730733241472,-500.0,0.00035616,2]
[341261069,1730733241492,-500.0,0.00035616,2]
[341261070,1730733241514,-757.0,0.00035616,2]
[341261071,1730733241534,-1210.33,0.00035616,2]
[341261072,1730733241555,-500.0,0.00035616,2]
[341261073,1730733241575,-500.0,0.00035616,2]
[341261074,1730733241595,-500.0,0.00035616,2]
[341261075,1730733241615,-500.0,0.00035616,2]
[341261076,1730733241636,-500.0,0.00035616,2]
[341261077,1730733241657,-500.0,0.00035616,2]
[341261078,1730733241679,-1449.8,0.00035616,2]
[341261079,1730733241700,-500.0,0.00035616,2]
[341261080,1730733241723,-645.58727284,0.00035616,2]
[341261081,1730733241750,-511.08,0.00035616,2]
[341261082,1730733241774,-500.0,0.00035616,2]
[341261083,1730733241796,-523.86910887,0.00035616,2]
[341261084,1730733241820,-907.57,0.00035616,2]
[341261085,1730733241840,-500.0,0.00035616,2]
[341261086,1730733241861,-203.66432351,0.00035616,2]
[341261087,1730733241882,-268.2572324,0.00035616,2]
[341261088,1730733241902,-500.0,0.00035616,2]
[341261089,1730733241922,-500.0,0.00035616,2]
[341261090,1730733241944,-500.0,0.00035616,2]
[341261091,1730733241964,-1044.98,0.00035616,2]
[341261092,1730733241985,-500.0,0.00035616,2]
[341261093,1730733242009,-1457.41,0.00035616,2]
[341261094,1730733242030,-500.0,0.00035616,2]
[341261095,1730733242052,-500.0,0.00035616,2]
[341261096,1730733242072,-773.93,0.00035616,2]
[341261097,1730733242094,-3039.82,0.00035616,2]
[341261098,1730733242114,-500.0,0.00035616,2]
[341261099,1730733242134,-633.02,0.00035616,2]
[341261100,1730733242158,-509.58,0.00035616,2]
[341261101,1730733242180,-500.0,0.00035616,2]
[341261102,1730733242203,-500.0,0.00035616,2]
[341261103,1730733242223,-1212.84,0.00035616,2]
[341261104,1730733242246,-973.86,0.00035616,2]
[341261105,1730733242269,-532.91,0.00035616,2]
[341261106,1730733242290,-500.0,0.00035616,2]
[341261107,1730733242311,-507.2,0.00035616,2]
[341261108,1730733242332,-500.0,0.00035616,2]
[341261109,1730733242352,-500.0,0.00035616,2]
[341261110,1730733242374,-1242.99,0.00035616,2]
[341261111,1730733242395,-500.0,0.00035616,2]
[341261112,1730733242417,-889.18,0.00035616,2]
[341261113,1730733242438,-1176.53,0.00035616,2]
[341261114,1730733242460,-557.55,0.00035616,2]
[341261115,1730733242480,-500.0,0.00035616,2]
[341261116,1730733242502,-545.97,0.00035616,2]
[341261117,1730733242524,-740.94,0.00035616,2]
[341261118,1730733242545,-871.5,0.00035616,2]
[341261119,1730733242565,-500.0,0.00035616,2]
[341261120,1730733242586,-500.0,0.00035616,2]
[341261121,1730733242607,-500.0,0.00035616,2]
[341261122,1730733242627,-500.0,0.00035616,2]
[341261123,1730733242647,-500.0,0.00035616,2]
[341261124,1730733242668,-854.2,0.00035616,2]
[341261125,1730733242688,-300.0,0.00035616,2]
[341261126,1730733242710,-233.17901876,0.00035769,2]
[341261127,1730733242735,-785.83775628,0.00035769,15]
[341261128,1730733242757,-34410.4733,0.00035769,2]
[341261129,1730733242778,-1058.27,0.00035789,2]
[341261130,1730733242798,-384.35977641,0.0003579,2]
[341261131,1730733242820,-3375.0,0.00035869,2]
[341261132,1730733242840,-352.52020838,0.00035873,5]
[341261133,1730733242860,-500.76386501,0.00035873,5]
[341261134,1730733242880,-216.95819215,0.00035873,5]
[341261135,1730733242900,-167.0,0.00035874,2]
[341261136,1730733242921,-1435.23,0.00035883,2]
[341261137,1730733242942,-1435.23,0.00035883,2]
[341261138,1730733242963,-1435.23,0.00035883,2]
[341261139,1730733242983,-1435.23,0.00035883,2]
[341261140,1730733243005,-1435.23,0.00035883,2]
[341261141,1730733243026,-1435.23,0.00035883,2]
[341261142,1730733243048,-1435.23,0.00035883,2]
[341261143,1730733243071,-1763.04788195,0.00035889,2]
[341261144,1730733243092,-1435.23,0.00035889,2]
[341261145,1730733243113,-1435.23,0.00035889,2]
[341261146,1730733243134,-500.0,0.00035889,2]
[341261147,1730733243155,-500.0,0.00035889,2]
[341261148,1730733243177,-1253.48,0.00035889,120]
[341261149,1730733243198,-1058.27,0.00035889,2]
[341261150,1730733243219,-1058.27,0.00035889,2]
[341261151,1730733244059,562.12,0.00035616,2]
[341261152,1730733244423,500.0,0.00035616,2]
[341261153,1730733244549,159.56,0.00035001,2]
[341261154,1730733244575,500.0,0.00035616,2]
[341261155,1730733244620,500.0,0.00035616,2]
[341261156,1730733244863,150.0,0.00035616,2]
[341261157,1730733245032,348.0,0.000253,10]
[341261158,1730733245083,500.0,0.00035616,2]
[341261159,1730733245123,500.0,0.00035616,2]
[341261160,1730733245596,500.0,0.00035616,2]
[341261161,1730733245682,500.0,0.00035616,2]
[341261162,1730733246022,500.0,0.00035616,2]
[341261163,1730733246178,208.32,0.0003588,10]
[341261164,1730733246540,383.33172866,0.00035616,2]
[341261165,1730733247156,1117.79,0.00035616,2]
[341261166,1730733248670,500.0,0.00035616,2]
[341261167,1730733249454,500.0,0.00035616,2]
[341261168,1730733249535,500.0,0.00035616,2]
[341261169,1730733249866,731.76,0.00035616,2]
[341261170,1730733250698,500.0,0.00035616,2]
[341261171,1730733250801,2853.86,0.00035616,2]
[341261172,1730733250950,500.0,0.00035616,2]
[341261173,1730733251345,1007.20645091,0.0003588,2]
[341261174,1730733252015,500.0,0.00035616,2]
[341261175,1730733252658,542.54830013,0.00035616,2]
[341261176,1730733253124,500.0,0.00035616,2]
[341261177,1730733253584,500.0,0.00035616,2]
[341261178,1730733255298,323.11130941,0.00035616,2]
[341261179,1730733255734,1414.05,0.00035616,2]
[341261180,1730733257325,500.0,0.00035616,2]
[341261181,1730733257498,500.0,0.00035616,2]
[341261182,1730733258653,500.0,0.00035616,2]
[341261183,1730733258710,636.69174441,0.00035616,2]
[341261184,1730733259080,500.0,0.00035616,2]
[341261185,1730733259222,500.0,0.00035889,2]
[341261186,1730733260299,1045.46,0.00035616,2]
[341261187,1730733260428,1000.0,0.00035396,2]
[341261188,1730733260837,500.0,0.00035616,2]
[341261189,1730733260909,173.6,0.0003588,10]
[341261190,1730733261678,500.0,0.00035616,2]
[341261191,1730733262791,500.0,0.00035616,2]
[341261192,1730733263834,500.0,0.00035616,2]
[341261193,1730733264519,520.8,0.00035616,2]
[341261194,1730733264601,500.0,0.00035616,2]
[341261195,1730733264880,1099.53,0.00035616,2]
[341261196,1730733280039,-150.0,0.00016905,2]
[341261197,1730733304451,280.0,0.000253,10]
[341261198,1730733316589,150.0,0.00018123,2]
[341261199,1730733359112,150.0,0.00018123,2]
[341261200,1730733363908,280.0,0.000253,10]
[341261201,1730733401088,150.0,0.00018123,2]
[341261202,1730733423833,280.0,0.000253,10]
[341261203,1730733443293,150.0,0.00018123,2]
[341261204,1730733483037,200.0,0.00023,2]
[341261205,1730733484242,166.0,0.000253,10]
[341261206,1730733485593,150.0,0.00018123,2]
[341261207,1730733528908,150.0,0.00018123,2]
[341261209,1730733540771,154.19,0.00015342,2]
[341261211,1730733570871,150.0,0.00018123,2]
[341261212,1730733613112,150.0,0.00018123,2]
[341261213,1730733655328,150.0,0.00018123,2]
[341261214,1730733697459,150.0,0.00018123,2]
[341261215,1730733739488,191.64625213,0.00018123,2]
[341261216,1730733908539,496798.16374787,0.00016,2]
[341261227,1730734086455,125261.74962553,0.00015,2]
[341261269,1730734232156,-157.06,0.00015342,2]
[341261270,1730734232166,-202.05990904,0.00015973,2]
[341261271,1730734232177,-30141.60117298,0.00016,2]
[341261272,1730734232188,-806.60267748,0.00016,2]
[341261273,1730734232373,-2615.83232425,0.00016,2]
[341261274,1730734232384,-3426.9903,0.00016,2]
[341261275,1730734232395,-8736.99250494,0.00016,2]
[341261276,1730734232415,-692.70000002,0.00016,2]
[341261277,1730734232426,-20522.99835298,0.00016,2]
[341261279,1730734238291,-278.09127288,0.00016,2]
[341261282,1730734240187,-1028.443,0.00016,2]
[341261283,1730734240199,-655.39084269,0.00016,2]
[341261284,1730734240230,-392.65902588,0.00016,2]
[341261285,1730734240242,-362.39815003,0.00016,2]
[341261286,1730734240253,-416.36328045,0.00016,2]
[341261287,1730734240264,-15802.07262437,0.00016,2]
[341261288,1730734240275,-473.28023069,0.00016,2]
[341261289,1730734240286,-2485.43080663,0.00016,2]
[341261290,1730734240297,-1279.15335669,0.00016,2]
[341261291,1730734240315,-1083.63074878,0.00016,2]
[341261292,1730734240326,-470.59406132,0.00016,2]
[341261293,1730734240342,-414.08029372,0.00016,2]
[341261294,1730734240354,-1979.79404271,0.00016,2]
[341261295,1730734240364,-1052.35103387,0.00016,2]
[341261296,1730734240375,-1636.7999998,0.00016,2]
[341261297,1730734240386,-1041.85,0.00016,2]
[341261298,1730734240401,-42026.69840226,0.00016,2]
[341261299,1730734240427,-793.38664399,0.00016,2]
[341261300,1730734240438,-1156.2,0.00016,2]
[341261301,1730734240449,-2689.99555988,0.00016,2]
[341261302,1730734240461,-333.81892786,0.00016,2]
[341261303,1730734240472,-27911.72259386,0.00016,2]
[341261304,1730734240491,-460.63094984,0.00016,2]
[341261311,1730734240686,-22877.06854443,0.00016,2]
[341261314,1730734240703,-313.78799327,0.00016,2]
[341261315,1730734240715,-976.17370124,0.00016,2]
[341261316,1730734240727,-557.04523083,0.00016,2]
[341261317,1730734240739,-9913.35077084,0.00016,2]
[341261318,1730734240751,-11155.02945712,0.00016,2]
[341261319,1730734240762,-3623.2,0.00016,2]
[341261320,1730734240777,-600.70263248,0.00016,2]
[341261370,1730734243116,-1160.63081773,0.00016,2]
[341261371,1730734243147,-1941.58201985,0.00016,2]
[341261372,1730734243181,-2240.0,0.00016,2]
[341261373,1730734243295,-313.37999977,0.00016,2]
[341261374,1730734243336,-4552.595,0.00016,2]
[341261375,1730734243413,-113853.05975419,0.00016,2]
[341261376,1730734243425,-23521.76724492,0.00016,2]
[341261377,1730734243436,-935.21484251,0.00016,2]
[341261378,1730734243451,-7564.7952034,0.00016,2]
[341261379,1730734243505,-1016.1,0.00016,2]
[341261380,1730734243517,-316.220239,0.00016,2]
[341261387,1730734246258,-277513.82753198,0.00016,2]
[341261388,1730734246345,-863.67,0.00016,2]
[341261389,1730734246455,-204029.94520254,0.00016,2]
[341261390,1730734246466,-14230.06181204,0.00016,2]
[341261419,1730735341017,-159.15,0.00015342,2]
[341261420,1730735341040,-4009.97724549,0.0001558,2]
[341261421,1730735341064,-620.316,0.0001568,2]
[341261422,1730735341087,-173.35116725,0.0001568,2]
[341261423,1730735341110,-50000.0,0.000159,2]
[341261424,1730735341136,-6275.83070321,0.000159,2]
[341261425,1730735341157,-159.94739325,0.00015973,2]
[341261426,1730735341178,-500.0,0.00015973,2]
[341261427,1730735341199,-194.94105961,0.00016,2]
[341261428,1730735341221,-937906.48643119,0.00016,2]
[341261434,1730735356906,-300.0,0.00015899,2]
[341261435,1730735356930,-99700.0,0.00016,2]
[341261443,1730735363890,-100000.0,0.00016,2]
[341261444,1730735366575,-100000.0,0.00016,2]
[341261475,1730735432482,-3055.87702249,0.0001584,2]
[341261476,1730735432491,-233.44439235,0.0001599,2]
[341261477,1730735432502,-449996.30720638,0.00016,2]
[341261478,1730735432515,-8447.83086702,0.00016,2]
[341261479,1730735432568,-202163.46709782,0.00016,2]
[341261480,1730735432580,-707.25398067,0.0001601,2]
[341261481,1730735432590,-150.0,0.0001611,2]
[341261482,1730735432600,-269.82,0.0001726,2]
[341261483,1730735432610,-2568.70220026,0.0001726,2]
[341261484,1730735432620,-707.25398063,0.00019097,2]
[341261485,1730735432631,-2311.42,0.00019452,2]
[341261486,1730735432646,-483.49304381,0.00019626,2]
[341261487,1730735432656,-2380.25,0.00019726,2]
[341261488,1730735432666,-618.06830588,0.000199,2]
[341261489,1730735432677,-250.0,0.00021,2]
[341261490,1730735432689,-3575.59,0.00021,2]
[341261491,1730735432700,-707.25398063,0.00022184,2]
[341261492,1730735432710,-300.0,0.00023,2]
[341261493,1730735432719,-483.49304379,0.00023048,2]
[341261494,1730735432729,-5476.66642957,0.00023922,2]
[341261495,1730735432738,-350.0,0.00025,2]
[341261496,1730735432748,-707.25398063,0.00025271,2]
[341261497,1730735432757,-280.0,0.000253,10]
[341261499,1730735432766,-724.24598874,0.00026,30]
[341261501,1730735432777,-483.49304379,0.0002647,2]
[341261503,1730735432787,-400.0,0.00027,2]
[341261505,1730735432796,-725.19,0.00027528,2]
[341261507,1730735432806,-391.0,0.0002783,15]
[341261509,1730735432816,-707.25398063,0.00028358,2]
[341261511,1730735432826,-450.0,0.00029,2]
[341261513,1730735432836,-150.0,0.00029158,7]
[341261515,1730735432846,-158.0,0.0002916,5]
[341261517,1730735432857,-471.73,0.00029243,2]
[341261519,1730735432866,-153.22,0.0002925,30]
[341261521,1730735432876,-1181.14,0.00029258,2]
[341261523,1730735432886,-250.0,0.00029309,2]
[341261525,1730735432896,-1233.82,0.00029345,2]
[341261527,1730735432905,-494.05,0.00029403,2]
[341261529,1730735432915,-23900.0,0.00029455,2]
[341261531,1730735432925,-601.85,0.00029533,2]
[341261533,1730735432935,-250.0,0.00029562,2]
[341261552,1730735433210,-2781.9,0.00029655,2]
[341261554,1730735433220,-289.23,0.00029674,2]
[341261556,1730735433231,-471.73,0.00029713,2]
[341261558,1730735433241,-363.21,0.00029719,2]
[341261560,1730735433251,-175.44,0.00029752,2]
[341261562,1730735433261,-209.26,0.00029784,2]
[341261564,1730735433271,-150.0,0.00029792,2]
[341261566,1730735433282,-725.19,0.00029792,2]
[341261568,1730735433291,-483.49304379,0.00029892,2]
[341261570,1730735433301,-335.4158416,0.000299,2]
[341261573,1730735433311,-164.51,0.00029982,2]
[341261574,1730735433320,-159.65592991,0.0003,2]
[341261575,1730735433330,-471.73,0.00030183,2]
[341261576,1730735433340,-204.97,0.00030216,2]
[341261577,1730735433350,-181.77,0.00030244,2]
[341261578,1730735433359,-154.19,0.00030548,2]
[341261579,1730735433370,-683.0,0.00030613,30]
[341261580,1730735433383,-471.73,0.00030652,2]
[341261581,1730735433393,-292.691,0.0003068,2]
[341261582,1730735433403,-3375.0,0.0003068,2]
[341261583,1730735433413,-254.337,0.0003068,2]
[341261584,1730735433423,-557.76709334,0.000307,30]
[341261585,1730735433432,-500.0,0.000307,30]
[341261586,1730735433443,-526.14076651,0.000307,30]
[341261587,1730735433456,-500.0,0.000307,30]
[341261588,1730735433466,-500.0,0.000307,30]
[341261589,1730735433475,-500.0,0.000307,30]
[341261590,1730735433484,-608.97564134,0.000307,30]
[341261591,1730735433493,-250.0,0.000308,30]
[341261592,1730735433503,-500.0,0.00031,2]
[341261593,1730735433512,-471.73,0.00031122,2]
[341261594,1730735433521,-707.25398063,0.00031446,15]
[341261595,1730735433530,-471.73,0.00031592,2]
[341261596,1730735433540,-1000.0,0.00031732,2]
[341261597,1730735433549,-159.56,0.0003177,2]
[341261598,1730735433559,-725.19,0.00032056,2]
[341261599,1730735433569,-471.73,0.00032062,2]
[341261600,1730735433579,-500.0,0.000321,30]
[341261601,1730735433589,-500.0,0.000321,30]
[341261602,1730735433599,-500.0,0.000321,30]
[341261603,1730735433608,-500.0,0.000321,30]
[341261604,1730735433618,-500.0,0.000321,30]
[341261605,1730735433628,-500.0,0.000321,30]
[341261606,1730735433638,-500.0,0.000321,30]
[341261607,1730735433648,-175.44,0.00032101,2]
[341261608,1730735433658,-153.22,0.00032138,30]
[341261609,1730735433667,-471.73,0.00032532,2]
[341261610,1730735433676,-158.91,0.00032705,2]
[341261611,1730735433685,-159.15,0.0003272,2]
[341261612,1730735433696,-500.0,0.00032876,2]
[341261613,1730735433707,-550.0,0.00033,2]
[341261614,1730735433717,-1000.0,0.000332,7]
[341261615,1730735433726,-483.49304379,0.00033313,2]
[341261616,1730735433736,-453.233,0.0003368,2]
[341261617,1730735433746,-725.19,0.0003432,2]
[341261618,1730735433756,-175.44,0.0003445,2]
[341261619,1730735433766,-707.25398063,0.00034533,15]
[341261620,1730735433776,-381.239436,0.000346,30]
[341261621,1730735433786,-299.99,0.0003499,10]
[341261622,1730735433796,-697.83,0.00035,2]
[341261623,1730735433806,-489.94999999,0.00035,2]
[341261624,1730735433817,-600.0,0.00035,2]
[341261625,1730735433827,-1017.0,0.00035,9]
[341261626,1730735433837,-153.22,0.00035026,120]
[341261627,1730735433847,-1000.0,0.000356,2]
[341261628,1730735433857,-1355.34086572,0.00035615,30]
[341261629,1730735433866,-528.7639996,0.00035616,2]
[341261630,1730735433876,-500.0,0.00035616,2]
[341261631,1730735433887,-500.0,0.00035616,2]
[341261632,1730735433897,-500.0,0.00035616,2]
[341261633,1730735433908,-183.823882,0.00035616,2]
[341261634,1730735433917,-159.024645,0.00035616,2]
[341261635,1730735433927,-500.0,0.00035616,2]
[341261636,1730735433938,-500.0,0.00035616,2]
[341261637,1730735433950,-177.656798,0.00035616,2]
[341261638,1730735433960,-275.031153,0.00035616,2]
[341261639,1730735433970,-500.0,0.00035616,2]
[341261640,1730735433979,-500.0,0.00035616,2]
[341261641,1730735433989,-500.0,0.00035616,2]
[341261642,1730735433999,-500.0,0.00035616,2]
[341261643,1730735434009,-500.0,0.00035616,2]
[341261644,1730735434019,-500.0,0.00035616,2]
[341261645,1730735434029,-500.0,0.00035616,2]
[341261646,1730735434038,-546.65753769,0.00035616,2]
[341261647,1730735434048,-504.10913617,0.00035616,2]
[341261648,1730735434058,-500.0,0.00035616,2]
[341261649,1730735434067,-430.49224843,0.00035616,2]
[341261650,1730735434077,-428.2764671,0.00035616,2]
[341261651,1730735434087,-500.0,0.00035616,2]
[341261652,1730735434097,-500.0,0.00035616,2]
[341261653,1730735434107,-508.989438,0.00035616,2]
[341261654,1730735434117,-300.0,0.00035616,2]
[341261655,1730735434126,-581.97087498,0.00035616,2]
[341261656,1730735434135,-500.0,0.00035616,2]
[341261657,1730735434144,-500.0,0.00035616,2]
[341261658,1730735434154,-500.0,0.00035616,2]
[341261659,1730735434164,-500.0,0.00035616,2]
[341261660,1730735434174,-500.0,0.00035616,2]
[341261661,1730735434187,-500.0,0.00035616,2]
[341261662,1730735434197,-500.0,0.00035616,2]
[341261663,1730735434208,-500.0,0.00035616,2]
[341261664,1730735434217,-500.0,0.00035616,2]
[341261665,1730735434227,-364.88906957,0.00035616,2]
[341261666,1730735434236,-500.0,0.00035616,2]
[341261667,1730735434245,-500.0,0.00035616,2]
[341261668,1730735434255,-678.77,0.00035616,2]
[341261669,1730735434265,-505.55722744,0.00035616,2]
[341261670,1730735434275,-500.0,0.00035616,2]
[341261671,1730735434285,-500.0,0.00035616,2]
[341261672,1730735434295,-500.0,0.00035616,2]
[341261673,1730735434305,-500.0,0.00035616,2]
[341261674,1730735434315,-510.6148438,0.00035616,2]
[341261675,1730735434324,-520.01246585,0.00035616,2]
[341261676,1730735434334,-500.0,0.00035616,2]
[341261677,1730735434344,-500.0,0.00035616,2]
[341261678,1730735434354,-500.0,0.00035616,2]
[341261679,1730735434364,-500.0,0.00035616,2]
[341261680,1730735434374,-500.0,0.00035616,2]
[341261681,1730735434388,-500.0,0.00035616,2]
[341261682,1730735434398,-500.0,0.00035616,2]
[341261683,1730735434408,-500.0,0.00035616,2]
[341261684,1730735434418,-500.0,0.00035616,2]
[341261685,1730735434428,-500.0,0.00035616,2]
[341261686,1730735434437,-500.0,0.00035616,2]
[341261687,1730735434449,-500.0,0.00035616,2]
[341261688,1730735434459,-500.0,0.00035616,2]
[341261689,1730735434469,-595.97,0.00035616,2]
[341261690,1730735434479,-500.0,0.00035616,2]
[341261691,1730735434489,-500.0,0.00035616,2]
[341261692,1730735434498,-500.0,0.00035616,2]
[341261693,1730735434508,-629.07357427,0.00035616,2]
[341261694,1730735434517,-500.0,0.00035616,2]
[341261695,1730735434527,-500.0,0.00035616,2]
[341261696,1730735434536,-500.0,0.00035616,2]
[341261697,1730735434546,-500.0,0.00035616,2]
[341261698,1730735434555,-595.36284688,0.00035616,2]
[341261699,1730735434565,-183.90879122,0.00035616,2]
[341261700,1730735434574,-228.32170934,0.00035616,2]
[341261701,1730735434584,-562.46,0.00035616,2]
[341261702,1730735434594,-500.0,0.00035616,2]
[341261703,1730735434604,-500.0,0.00035616,2]
[341261704,1730735434614,-500.0,0.00035616,2]
[341261705,1730735434624,-500.0,0.00035616,2]
[341261706,1730735434633,-500.0,0.00035616,2]
[341261707,1730735434643,-500.0,0.00035616,2]
[341261708,1730735434652,-253.55899979,0.00035616,2]
[341261709,1730735434662,-500.0,0.00035616,2]
[341261710,1730735434671,-500.0,0.00035616,2]